Cogmind - Beta 13 @@@ ROGUE MODE // 2024.05.02 @ 23:45:24 Player: paplal Result: Destroyed by Y-54 Guardian with Gatling Laser Performance ------------- Evolutions (3) 1500 Regions Visited (7) 1400 Robots Destroyed (95) 475 Value Destroyed (3138) 3138 Prototype IDs (4) 80 Alien Tech Used (0) 0 Bonus (577) 577 TOTAL SCORE: 7170 Bonus ------- High Alert Combat Kills 75 Follower Combat Kills 302 Entered Garrisons 200 Cogmind --------- Core Integrity 0/700 Matter 294/300 Energy 92/100 System Corruption 0% Temperature Hot (289) Movement Walking (200) Ox1 Location -7/Garrison Parts ------- > --- POWER (2) -------- (None) > --- PROPULSION (3) --- Titanium Leg > --- UTILITY (6) ------ Large Storage Unit Improved Melee Analysis Suite Armor Integrity Analyzer Hacking Suite > --- WEAPON (2) ------- Slug Cannon > --- INVENTORY (15) --- Light Deuterium Engine Light Nuclear Core Light Nuclear Core Light Nuclear Core Improved Deuterium Engine Micro Nuclear Core Improved Heat Sink Advanced Weight Redist. System Recoil Stabilizer High-powered Field Laser Beamcaster Beamcaster Wave Gun Plasma Cannon Spear Peak State ------------ > --- POWER ------------ Micro Nuclear Core Micro Nuclear Core > --- PROPULSION ------- Carbon-fiber Leg Titanium Leg Titanium Leg > --- UTILITY ---------- Heat Sink Large Storage Unit Improved Melee Analysis Suite Armor Integrity Analyzer Advanced ECM Suite Hacking Suite > --- WEAPON ----------- High-powered Field Laser Spear > --- INVENTORY -------- Light Deuterium Engine Light Nuclear Core Light Nuclear Core Light Nuclear Core Light Nuclear Core Light Nuclear Core Light Nuclear Core Micro Nuclear Core Improved Heat Sink Improved Heat Sink Advanced ECM Suite Improved Medium Armor Plating Shock Rifle Plasma Cannon Spear [Rating: 48] Favorites ----------- Power Micro Nuclear Core Engine Heavy Ion Engine Power Core Micro Nuclear Core Propulsion Light Treads Treads Light Treads Leg Titanium Leg Utility Large Storage Unit Device Heat Sink Storage Large Storage Unit Processor Transport Network Coupler Hackware Hacking Suite Protection Light Armor Plating Weapon Katana Energy Gun Beamcaster Energy Cannon Plasma Cannon Ballistic Gun Assault Rifle Ballistic Cannon Light Cannon Launcher Shock Bomb Launcher Slashing Weapon Katana Piercing Weapon Spear Build | -11 -10 -9 -8 -7 -7 -7 -7 ------- Run | Yrd Mat Mat Mat Fac Was Fac Gar Slots Evolved 6 | . . 2 2 2 . . . Power 1 | . . . . 1 . . . Propulsion 1 | . . . 1 . . . . Utility 4 | . . 2 1 1 . . . Weapon . | . . . . . . . . Parts Attached 84 | 4 3 28 27 18 2 . 2 Power 12 | . 1 4 3 3 . . 1 Engine 6 | . 1 3 1 . . . 1 Core 6 | . . 1 2 3 . . . Reactor . | . . . . . . . . Propulsion 24 | 2 . 6 9 7 . . . Treads 15 | 2 . 4 9 . . . . Leg 9 | . . 2 . 7 . . . Wheel . | . . . . . . . . Hover . | . . . . . . . . Flight . | . . . . . . . . Utility 22 | 1 1 8 7 4 1 . . Device 8 | . . 2 5 1 . . . Storage 3 | 1 . 2 . . . . . Processor 6 | . . 3 1 2 . . . Hackware 1 | . . . . 1 . . . Protection 4 | . 1 1 1 . 1 . . Artifact . | . . . . . . . . Weapon 26 | 1 1 10 8 4 1 . 1 Energy Gun 7 | 1 1 2 . 2 1 . . Energy Cannon 7 | . . 1 6 . . . . Ballistic Gun 2 | . . 2 . . . . . Ballistic Cannon 2 | . . 1 . . . . 1 Launcher 5 | . . 3 2 . . . . Special Weapon . | . . . . . . . . Impact Weapon . | . . . . . . . . Slashing Weapon 2 | . . 1 . 1 . . . Piercing Weapon 1 | . . . . 1 . . . Special Melee Weapon . | . . . . . . . . Unidentified Prototypes 4 | . . 3 . 1 . . . Corrupted Parts 1 | . . . 1 . . . . System Corruption 1 | . . . 1 . . . . Parts Lost 35 | . . 9 15 5 . . 6 Power 8 | . . 2 2 2 . . 2 Propulsion 8 | . . . 5 1 . . 2 Utility 12 | . . 5 4 2 . . 1 Weapon 7 | . . 2 4 . . . 1 Highest Loss Streak 6 | . . 4 6 3 . . 6 To Critical Strikes . | . . . . . . . . Average Slot Usage (%) 91 | . 77 89 90 95 99 100 89 Engine 4 | . 3 9 2 . . . 4 Core 6 | . . . 6 14 15 15 9 Treads 16 | . 28 19 23 10 . . . Leg 6 | . . 2 . 11 23 23 21 Device 7 | . . 6 9 9 8 7 6 Storage 9 | . 14 12 9 7 7 7 7 Processor 12 | . . 7 15 16 15 15 15 Hackware 2 | . . . . 7 7 7 7 Protection 5 | . 6 8 5 1 5 7 1 Energy Gun 4 | . 24 5 . 1 7 7 6 Energy Cannon 4 | . . 1 10 9 . . . Launcher 2 | . . 3 3 . . . . Slashing Weapon 4 | . . 8 3 1 . . . Piercing Weapon 1 | . . . . 1 7 7 6 Naked Turns . | . . . . . . . . Heaviest Build 52 | 7 16 49 52 48 47 47 47 Greatest Support 60 | 40 40 46 60 60 49 49 49 Greatest Overweight (x) 2 | . . 1 1 2 . . . Average Overweight (x) . | . . . . . . . . Largest Inventory Capacity 15 | 8 8 15 15 15 15 15 15 Average Capacity 13 | 7 8 11 15 15 15 15 15 Most Carried 15 | 8 8 15 15 15 15 15 15 Average Carried 11 | 6 7 9 12 13 14 14 15 Final Capacity 15 | 8 8 15 15 15 15 15 15 Final Carried 15 | 8 7 15 15 15 14 15 15 Class Distribution -------------------- 59% | Scavenger-Mutant 38% | Mutant Dominant Class ---------------- Mutant | -10/Materials Mutant | -9/Materials Scavenger-Mutant | -8/Materials Scavenger-Mutant | -7/Factory Scavenger-Mutant | -7/Waste Scavenger-Mutant | -7/Factory Scavenger-Mutant | -7/Garrison Resources | -11 -10 -9 -8 -7 -7 -7 -7 ----------- Run | Yrd Mat Mat Mat Fac Was Fac Gar Matter Collected 1671 | 164 98 572 482 315 30 . 10 Remotely . | . . . . . . . . Salvage Created 4333 | . 98 1111 1772 796 317 . 239 Parts 210 | . 5 77 84 35 1 . 8 Haulers Intercepted 2 | . . 2 . . . . . Recyclers Shooed 1 | . . . . 1 . . . Parts Field Recycled . | . . . . . . . . Retrieved Matter . | . . . . . . . . Parts Self-Destructed . | . . . . . . . . Prevented . | . . . . . . . . Kills | -11 -10 -9 -8 -7 -7 -7 -7 ------- Run | Yrd Mat Mat Mat Fac Was Fac Gar Combat Hostiles Destroyed 64 | . 2 21 24 12 1 . 4 Melee 3 | . . . . 3 . . . Guns 6 | . 2 3 . . . . 1 Cannons 28 | . . 8 10 8 . . 2 AOE 18 | . . 10 8 . . . . Classes Destroyed 15 | . 1 9 2 2 1 . . Worker 6 | . . 2 2 2 . . . Builder 10 | . . 4 5 1 . . . Tunneler 3 | . . 2 1 . . . . Hauler 2 | . . 2 . . . . . Recycler 2 | . . 1 1 . . . . Mechanic 2 | . . . . 2 . . . Operator 1 | . . . 1 . . . . Watcher 5 | . . 3 2 . . . . Grunt 45 | . 2 14 18 10 . . 1 Brawler 2 | . . 1 1 . . . . Duelist 4 | . . 2 . 1 . . 1 Sentry 9 | . . 4 3 . . . 2 Hunter 2 | . . . 2 . . . . Programmer 1 | . . . . 1 . . . Compactor 1 | . . . . . 1 . . Best Kill Streak 6 | . 2 6 5 5 1 . 2 Combat Bots Only 5 | . 2 4 4 5 1 . 2 Max Kills in Single Turn 4 | . 1 4 2 1 1 . 1 Gunslinging . | . . . . . . . . Exploded 1 | . . 1 1 . . . . Melee 1 | . . . . 1 . . . Uniques/NPCs Destroyed . | . . . . . . . . Combat | -11 -10 -9 -8 -7 -7 -7 -7 -------- Run | Yrd Mat Mat Mat Fac Was Fac Gar Hostile Shots Fired 591 | . 7 129 232 85 . 9 129 Missed 152 | . 4 39 56 15 . 3 35 Damage Taken 7249 | . 35 1740 2964 1513 64 69 864 Core 1389 | . . 223 466 527 . 11 162 Absorbed by Shields . | . . . . . . . . Regen/Repaired (Parts) 339 | . . . . . 195 23 121 Core Remaining (%) 64 | 100 100 44 15 . . . . Volleys Fired 262 | . 10 83 85 56 6 4 18 Largest 2 | . 2 2 2 2 1 1 2 Hottest 155 | . 90 108 155 155 75 75 123 Shots Fired 361 | . 20 105 119 86 6 4 21 Gun 84 | . 20 32 . 5 6 4 17 Cannon 216 | . . 51 80 81 . . 4 Launcher 61 | . . 22 39 . . . . Special . | . . . . . . . . Kinetic 49 | . . 45 . . . . 4 Thermal 246 | . 20 37 80 82 6 4 17 Explosive 6 | . . 6 . . . . . Electromagnetic 60 | . . 17 39 4 . . . Robot Hit Streak 13 | . 13 9 11 9 3 1 8 Robot Miss Streak 6 | . 3 4 4 6 2 1 1 Penetration Max . | . . . . . . . . Secondary Targets . | . . . . . . . . Shots Hit Robots 244 | . 16 75 65 64 4 2 18 Core Hits 135 | . 6 51 47 25 . 1 5 Critical Kills 1 | . . . . 1 . . . Critical Parts Destroyed . | . . . . . . . . Critical Strikes 7 | . 2 . . 4 . . 1 Burn 3 | . 2 . . . . . 1 Meltdown 1 | . . . . 1 . . . Impale 3 | . . . . 3 . . . Melee Attacks 15 | . . 3 1 11 . . . Impact . | . . . . . . . . Slashing 5 | . . 3 1 1 . . . Piercing 10 | . . . . 10 . . . Sneak Attacks 6 | . . 3 1 2 . . . Combat Hostiles . | . . . . . . . . Follow-up Attacks . | . . . . . . . . Damage Inflicted 7922 | . 188 2407 2876 1859 84 42 466 Guns 976 | . 188 288 . 36 84 42 338 Cannons 3265 | . . 709 1013 1415 . . 128 Explosions 3025 | . . 1233 1792 . . . . Melee 616 | . . 177 56 383 . . . Ramming 40 | . . . 15 25 . . . Kinetic 676 | . . 548 . . . . 128 Thermal 3665 | . 188 511 1087 1415 84 42 338 Explosive 584 | . . 584 . . . . . Electromagnetic 2341 | . . 587 1718 36 . . . Impact . | . . . . . . . . Slashing 308 | . . 177 56 75 . . . Piercing 308 | . . . . 308 . . . Highest Corruption 11 | . . 11 5 . . . . Average Corruption 6 | . . 8 4 . . . . Corruption Purged . | . . . . . . . . Corruption Blocked . | . . . . . . . . Effects 54 | . . 30 24 . . . . Message Errors 16 | . . 11 5 . . . . Matter Fused 7 | . . 2 5 . . . . Heat Flow Errors 6 | . . 3 3 . . . . Energy Discharges 10 | . . 5 5 . . . . Parts Rejected 1 | . . . 1 . . . . Parts Fused 2 | . . 2 . . . . . Data Loss (minor) 7 | . . 5 2 . . . . Data Loss (major) 2 | . . 1 1 . . . . Misfires 1 | . . 1 . . . . . Weapon Failures 2 | . . . 2 . . . . Overload Shots . | . . . . . . . . Overflow Damage 160 | . . 36 105 19 . . . Projectiles 55 | . . . 36 19 . . . Explosions 73 | . . 20 53 . . . . Melee 32 | . . 16 16 . . . . Knockbacks 4 | . . 4 . . . . . Impact . | . . . . . . . . Kinetic 4 | . . 4 . . . . . Secondary . | . . . . . . . . Self-Inflicted Damage 621 | . . 235 386 . . . . Shots 36 | . . 12 24 . . . . Rammed 3 | . . . . 3 . . . Targets Rammed 4 | . . . 1 3 . . . Kicked . | . . . . . . . . Crushed 1 | . . . 1 . . . . Highest Temperature 662 | . 210 321 662 627 85 76 293 Average Temperature 152 | . 91 83 146 263 44 43 71 Received Heat Transfer 2205 | . 18 438 909 603 . 39 198 Effects 72 | . . 3 27 42 . . . Shutdowns 18 | . . . 5 13 . . . Energy Bleed 10 | . . . 4 6 . . . Interference 15 | . . 3 6 6 . . . Matter Decay 5 | . . . 1 4 . . . Short Circuit 4 | . . . . 4 . . . Damage (minor) 2 | . . . 1 1 . . . Damage (major) 13 | . . . 8 5 . . . Damage (core) 5 | . . . 2 3 . . . Siege Activations . | . . . . . . . . Robots Corrupted 6 | . . . 6 . . . . Combat Hostiles 5 | . . . 5 . . . . Parts Fried 13 | . . 3 10 . . . . Impact Corruptions . | . . . . . . . . Robots Melted 5 | . . . 1 2 1 . 1 Combat Hostiles 4 | . . . 1 1 1 . 1 Parts Melted 9 | . 1 . 2 4 1 . 1 Heat Transferred 6690 | . 632 1039 1979 2269 148 74 549 Parts Sabotaged . | . . . . . . . . Parts Stolen . | . . . . . . . . Parts Stripped . | . . . . . . . . Power Chain Reactions 5 | . . 2 3 . . . . Alert | -11 -10 -9 -8 -7 -7 -7 -7 ------- Run | Yrd Mat Mat Mat Fac Was Fac Gar Peak Influence 536 | . 95 382 536 385 143 98 157 Initial 199 | . . 39 126 199 113 . 77 Average 223 | . 33 222 334 257 98 9 113 Maximum Alert Level 2 | . . 1 2 1 . . . Low Security (%) 45 | 100 100 31 25 29 100 100 100 Level 1 38 | . . 68 21 70 . . . Level 2 15 | . . . 53 . . . . Level 3 . | . . . . . . . . Level 4 . | . . . . . . . . Level 5 . | . . . . . . . . High Security . | . . . . . . . . Max Security . | . . . . . . . . Squads Dispatched 11 | . 1 3 3 3 . 1 . Investigation 3 | . 1 1 1 . . . . Extermination 1 | . . . . 1 . . . Reinforcement 6 | . . 2 2 2 . . . Assault . | . . . . . . . . Garrison 1 | . . . . . . 1 . Intercept . | . . . . . . . . Searches Triggered . | . . . . . . . . Construction Impeded 3 | . . . 2 1 . . . Haulers Reinforced . | . . . . . . . . Active Scanning Responses . | . . . . . . . . Cargo Convoy Interrupts . | . . . . . . . . Stealth | -11 -10 -9 -8 -7 -7 -7 -7 --------- Run | Yrd Mat Mat Mat Fac Was Fac Gar Distress Signals 5 | . . 3 2 . . . . Communications Jammed . | . . . . . . . . Distress Signals . | . . . . . . . . Times Spotted 109 | . 4 33 40 20 3 2 7 Peak Tracking Total 6 | . 4 6 5 6 2 2 4 Tactical Retreats 11 | . 1 3 4 3 . . . Traps | -11 -10 -9 -8 -7 -7 -7 -7 ------- Run | Yrd Mat Mat Mat Fac Was Fac Gar Traps Triggered 5 | . 1 3 . 1 . . . Indirectly . | . . . . . . . . Trap Hack Attempts . | . . . . . . . . Triggered . | . . . . . . . . Disarmed . | . . . . . . . . Reprogrammed . | . . . . . . . . Reused . | . . . . . . . . Traps Extracted . | . . . . . . . . Installed . | . . . . . . . . Triggered . | . . . . . . . . Machines | -11 -10 -9 -8 -7 -7 -7 -7 ---------- Run | Yrd Mat Mat Mat Fac Was Fac Gar Machines Disabled 5 | . . 3 1 1 . . . Max in Single Turn 1 | . . 1 1 1 . . . Machines Repaired . | . . . . . . . . Machines Dismantled . | . . . . . . . . Machines Sabotaged . | . . . . . . . . Overloaded Fab Kills . | . . . . . . . . Hacking | -11 -10 -9 -8 -7 -7 -7 -7 --------- Run | Yrd Mat Mat Mat Fac Was Fac Gar Machines Accessed 10 | . 2 3 2 2 . 1 . Terminals 6 | . 2 3 1 . . . . Fabricators 1 | . . . . 1 . . . Repair Stations 1 | . . . 1 . . . . Recycling Units 1 | . . . . 1 . . . Scanalyzers . | . . . . . . . . Garrison Access 1 | . . . . . . 1 . Total Hacks 16 | . 3 3 5 4 . 1 . Successful 8 | . 2 1 3 1 . 1 . Failed 8 | . 1 2 2 3 . . . Catastrophic 2 | . . 1 1 . . . . Database Lockouts . | . . . . . . . . Manual . | . . . . . . . . Terminals 8 | . 3 3 2 . . . . Fabricators 2 | . . . . 2 . . . Repair Stations 3 | . . . 3 . . . . Recycling Units 2 | . . . . 2 . . . Scanalyzers . | . . . . . . . . Garrison Access 1 | . . . . . . 1 . Terminal Hacks 5 | . 2 1 2 . . . . Record 1 | . . 1 . . . . . Emergency Access Points 2 | . 1 . 1 . . . . Alert Level 1 | . . . 1 . . . . Reinforcement Status 1 | . 1 . . . . . . Fabricator Hacks . | . . . . . . . . Repair Station Hacks 1 | . . . 1 . . . . Scan Component 1 | . . . 1 . . . . Recycling Unit Hacks 1 | . . . . 1 . . . Process 1 | . . . . 1 . . . Scanalyzer . | . . . . . . . . Garrison Access Hacks 1 | . . . . . . 1 . Unlock Access 1 | . . . . . . 1 . Unauthorized Hacks . | . . . . . . . . Terminals . | . . . . . . . . Fabricators . | . . . . . . . . Repair Stations . | . . . . . . . . Recycling Units . | . . . . . . . . Scanalyzers . | . . . . . . . . Garrison Access . | . . . . . . . . Data Cores Recovered 1 | . . . 1 . . . . Used . | . . . . . . . . Hacking Detections 6 | . . 2 1 2 . 1 . Full Trace Events 1 | . . . 1 . . . . Feedback Events . | . . . . . . . . Feedback Blocked . | . . . . . . . . Robot Schematics Acquired . | . . . . . . . . Robots Built . | . . . . . . . . Authchips . | . . . . . . . . Time . | . . . . . . . . Total Robot Build Rating . | . . . . . . . . Part Schematics Acquired . | . . . . . . . . Parts Built . | . . . . . . . . Authchips . | . . . . . . . . Time . | . . . . . . . . Total Part Build Rating . | . . . . . . . . Parts Repaired . | . . . . . . . . Time . | . . . . . . . . Parts Recycled . | . . . . . . . . Recycled Matter 9 | . . . . 9 . . . Retrieved Matter . | . . . . . . . . Retrieved Components . | . . . . . . . . Parts Scanalyzed . | . . . . . . . . Part Schematics Acquired . | . . . . . . . . Parts Damaged . | . . . . . . . . Bothacking | -11 -10 -9 -8 -7 -7 -7 -7 ------------ Run | Yrd Mat Mat Mat Fac Was Fac Gar Used RIF Installer . | . . . . . . . . Robots Hacked . | . . . . . . . . Non-combat . | . . . . . . . . Combat . | . . . . . . . . Robot Hacks Applied . | . . . . . . . . Relay Couplers Released . | . . . . . . . . Fabnet Peak Effective % . | . . . . . . . . Robots Rewired . | . . . . . . . . Allies Hacked . | . . . . . . . . Hacks Repelled . | . . . . . . . . Allies | -11 -10 -9 -8 -7 -7 -7 -7 -------- Run | Yrd Mat Mat Mat Fac Was Fac Gar Total Allies 19 | . . . . . 19 . . Largest Group 19 | . . . . . 19 8 7 Highest-Rated Group 465 | . . . . . 465 233 202 Highest-Rated Ally 35 | . . . . . 35 35 35 Total Orders . | . . . . . . . . Ally Attacks 179 | . . . . . 143 12 24 Total Damage 5566 | . . . . . 5053 204 309 Kills 18 | . . . . . 14 2 2 Allies Corrupted . | . . . . . . . . Allies Melted . | . . . . . . . . Intel | -11 -10 -9 -8 -7 -7 -7 -7 ------- Run | Yrd Mat Mat Mat Fac Was Fac Gar Robot Analysis Total . | . . . . . . . . Derelict Logs Recovered . | . . . . . . . . Drone Launches . | . . . . . . . . Drone Recoveries . | . . . . . . . . Exploration | -11 -10 -9 -8 -7 -7 -7 -7 ------------- Run | Yrd Mat Mat Mat Fac Was Fac Gar Turns Passed 4949 | 82 289 1568 1465 733 506 170 136 Spaces Moved 2273 | 51 131 660 626 297 344 125 39 Core 13 | 13 . . . . . . . Treads 1512 | 38 131 571 626 146 . . . Legs 748 | . . 89 . 151 344 125 39 Wheels . | . . . . . . . . Hover . | . . . . . . . . Flight . | . . . . . . . . Fastest Speed 50 | 50 160 120 160 120 126 126 126 Average Speed 162 | 131 160 190 173 149 126 126 126 Slowest Speed 260 | 160 160 240 250 260 126 126 126 Overloaded Moves . | . . . . . . . . Propulsion Burnouts . | . . . . . . . . Robots Hopped . | . . . . . . . . Cave-ins Triggered . | . . . . . . . . Exploration Rate (%) 29 | 3 26 50 38 10 97 3 7 Regions Visited 7 Branch Regions . Pre-discovered Areas . | . . . . . . . . Known Exits Taken 2 | . . . 1 . . 1 . Unknown Exits Taken 3 | 1 1 1 . . . . . Scrap Searched . | . . . . . . . . Spaces Dug 3 | . . . 3 . . . . Terrain Destroyed 60 | . . 22 38 . . . . Melee . | . . . . . . . . Projectile 28 | . . . 28 . . . . AOE 32 | . . 22 10 . . . . Terrain Rammed . | . . . . . . . . Walls Destroyed . | . . . . . . . . Machines Disabled . | . . . . . . . . Actions | -11 -10 -9 -8 -7 -7 -7 -7 --------- Run | Yrd Mat Mat Mat Fac Was Fac Gar Total 3148 | 65 192 867 889 480 416 134 105 Wait 329 | . 43 30 102 68 41 . 45 Move 2268 | 50 130 659 625 297 343 125 39 Hop . | . . . . . . . . Pick Up 115 | 11 4 38 32 16 11 3 . Fast Attach 14 | 1 . 9 2 2 . . . Attach 54 | 3 3 13 23 11 1 . . Detach 2 | . . 1 . . 1 . . Swap 17 | . . 7 2 5 1 . 2 Drop 68 | . 2 24 16 11 12 2 1 Fire 262 | . 10 83 85 56 6 4 18 Melee 15 | . . 3 1 11 . . . Ram . | . . . . . . . . Kick . | . . . . . . . . Crush 4 | . . . 1 3 . . . Escape Stasis . | . . . . . . . . Rewire . | . . . . . . . . Trap . | . . . . . . . . Miscellaneous . | . . . . . . . . Route ------- -11/Scrapyard -10/Materials -9/Materials -8/Materials -7/Factory -7/Waste -7/Factory -7/Garrison History --------- Turn | Location | Event 6 | -11/Scrapyard | Discovered new exit (range 15) 83 | -11/Scrapyard | Entered Materials 325 | -10/Materials | Build established: Mutant 348 | -10/Materials | Discovered new exit (range 13) 372 | -10/Materials | Entered another Materials area 372 | -9/Materials | Evolved 2 slots: Utility x2 701 | -9/Materials | Lost 4 parts (1p1u2w) 922 | -9/Materials | Core integrity fell below 50% 928 | -9/Materials | Lost 3 parts (3u) 1229 | -9/Materials | Build established: Scavenger-Mutant 1326 | -9/Materials | System corruption reached 10% 1705 | -9/Materials | Build established: Mutant 1765 | -9/Materials | Discovered new exit (range 8) 1940 | -9/Materials | Entered another Materials area 1940 | -8/Materials | Evolved 2 slots: Propulsion x1, Utility x1 2494 | -8/Materials | Core integrity fell below 50% 2508 | -8/Materials | Lost 6 parts (1p2n2u1w) 2588 | -8/Materials | Lost 3 parts (1n2w) 2691 | -8/Materials | Discovered new exit (range 3) 2741 | -8/Materials | Core integrity fell below 20% 2931 | -8/Materials | Build established: Scavenger-Mutant 3403 | -8/Materials | Identified exit to Factory 3405 | -8/Materials | Entered Factory 3405 | -7/Factory | Evolved 2 slots: Power x1, Utility x1 3742 | -7/Factory | Core integrity fell below 50% 3749 | -7/Factory | Lost 3 parts (1p1n1u) 4138 | -7/Factory | Sucked down chute 4138 | -7/Factory | Entered Waste 4157 | -7/Waste | Spotted C-40 Crusher 4171 | -7/Waste | Warlord forces began an assault 4196 | -7/Waste | Spotted C-40 Crusher 4203 | -7/Waste | Allies destroyed C-40 Crusher 4234 | -7/Waste | Lost 3 allies 4297 | -7/Waste | Spotted C-40 Crusher 4300 | -7/Waste | Allies destroyed C-40 Crusher 4304 | -7/Waste | Spotted C-40 Crusher 4318 | -7/Waste | Allies destroyed C-40 Crusher 4325 | -7/Waste | Allies destroyed C-40 Crusher 4346 | -7/Waste | Spotted C-40 Crusher 4354 | -7/Waste | Lost 8 allies 4362 | -7/Waste | Destroyed C-40 Crusher 4598 | -7/Waste | Discovered new exit (range 12) 4644 | -7/Waste | Entered Factory 4644 | -7/Factory | Accompanied by 8 allies 4814 | -7/Factory | Identified exit to Garrison 4814 | -7/Factory | Entered Garrison 4814 | -7/Garrison | Accompanied by 7 allies 4836 | -7/Garrison | Triggered checkpoint 4842 | -7/Garrison | Core integrity fell below 20% 4907 | -7/Garrison | Lost 3 allies 4924 | -7/Garrison | Triggered checkpoint 4950 | -7/Garrison | Destroyed by Y-54 Guardian with Gatling Laser Last Messages --------------- 04859_ L-41 Fighter overheating. 04860_ L-41 Fighter critical meltdown. 04863_ Dropped Mic. Nuclear Core. 04865_ Acquired 10 matter. 04868_ G-47 Trooper destroyed. 04873_ OC-32J(m) repairs Spear. 04875_ OC-32J(m) repairs Carbon-fiber Leg. 04877_ OC-32J(m) repairs Lrg. Storage Unit. 04899_ OC-32J(m) repairs Carbon-fiber Leg. 04924_ Slug penetrates 0Q-3OK(g). 04924_ 0Q-3OK(g) destroyed. 04939_ Heat Sink destroyed. 04944_ Carbon-fiber Leg destroyed. 04945_ Mic. Nuclear Core destroyed. 04945_ Lgt. Angular Momentum Engine destroyed. 04946_ Imp. Deuterium Engine melted. 04946_ Y-54 Guardian destroyed. 04947_ Beamcaster destroyed. 04947_ Titanium Leg destroyed. 04949_ Y-54 Guardian destroyed. Map ----- +----------------------------------------------------+ | | | | | ?????????????????????????????????????????????????? | | ?????????????????????????????????????????????????? | | ?????????????????????????????????????????????????? | | ?????????????????????????????????????????????????? | | ?????????????????????????????????????????????????? | | ?????????????????????????????????????????????????? | | ?????????????????????????????????????????????????? | | ?????????????????????????????????????????????????? | | ?????????????????????????????????????????????????? | | ?????????????????????????????????????????????????? | | ?????????????????????????????????????????????????? | | ?????????????????????????????????????????????????? | | ?????????????????????????????????????????????????? | | ?????????????????????????????????????????????????? | | ?????????????????????????????????????????????????? | | ?????????????????????????????????????????????????? | | ?????????????????????????????????????????????????? | | ?????????????????????????????????????????????????? | | ?????????????????????????????????????????????????? | | ?????????????????????????????????????????????????? | | ?????????????????????????????????????????????????? | | ?????????????????################ "???????????? | | ?????????????# %Y%!% "???????????? | | ?????????????????##"""###@########???????????????? | | ????????????????????????#[#??????????????????????? | | ????????????????????????#!#####??????????????????? | | ??????????????????????### +#""#??????????????????? | | ??????????????????## ## [+ "#??????????????????? | | ??????????????????# +!%!+= "#??????????????????? | | ??????????????????????#%/!%* "#??????????????????? | | ??????????????????????###[##""#??????????????????? | | ????????????????????????#%#####??????????????????? | | ????????????????????????#!#??????????????????????? | | ????????????????????????#]#??????????????????????? | | ????????????????????????#!#???#####??????????????? | | ????????????????????????#!#???# #??????????????? | | ??????????????????????### ##### #??????????????? | | ??????????????????????# #??????????????? | | ??????????????????????# #??????????????? | | ??????????????????????# ##########??????????????? | | ??????????????????????# #???????????????????????? | | ??????????????????????# #???????????????????????? | | ??????????????????????# #???????????????????????? | | ??????????????????????# #???????????????????????? | | ?????????????????????? #???????????????????????? | | ?????????????????????? #???????????????????????? | | ??????????????????????####???????????????????????? | | ?????????????????????????????????????????????????? | +----------------------------------------------------+ Best States ------------- Heat Dissipation 44 Energy Generation 28 Energy Capacity 380 Matter Stores 300 Matter Capacity 300 Sight Range 16 Terrain Scan Density 85 ECM Strength 2 Additional Mass Support 6 Armor Coverage 225 Evasion (%) 55 Melee Accuracy 6 Armor Integrity Analysis 30 Recoil Reduction 3 Energy Filtering 45 Offensive Hacking 10 Item Schematics ----------------- None Robot Schematics ------------------ None Fabricated ------------ Nothing Alien Tech Used ----------------- None Achievements -------------- None Challenges ------------ None Game ------ Seed ArcRiotSuperbattery Manual? 0 Play Time 01:03:10 Cumulative 9.4 hours Start 2024.05.02 @ 21:21:28 End 2024.05.02 @ 23:45:24 Sessions 3 Manual Loads 0 Difficulty Rogue Special Mode None Game No. 12 Rogue 12 Adventurer 0 Explorer 0 Win Type - Total 0 Types 0/0/0/0/0/0/0/0/0 Lore% 12 Gallery% 15 Achievement% 15 Wizard Run 0 Options --------- Layout 2 ASCII 0 Keyboard 0 Movement Mouse Keybinds 0 Fullscreen 1 Font 48/Smallcaps Map View 25x22 Zoom Use 99% Tactical HUD 1 Map Filters NONE Filters NONE Steam 1 RUN: 43459fcb-0d1c-4f88-817a-b6cada0c9728